[Event "*** Titled Tuesday Blitz"]
[Site "Chess.com"]
[Date "2021.03.30"]
[Round "3"]
[White "GMRafpig"]
[Black "CM_rui"]
[Result "1/2-1/2"]
[WhiteElo "2599"]
[BlackElo "2424"]
[TimeControl "180+1"]
[EndTime "10:29:56 PDT"]
[Termination "Game drawn by repetition"]

1. c4 {[%clk 0:03:00.9]} 1... Nf6 {[%clk 0:03:00.2]} 2. Nc3 {[%clk 0:02:58.8]}
2... e6 {[%clk 0:02:59.9]} 3. e4 {[%clk 0:02:58.9]} 3... d5 {[%clk 0:02:59.9]}
4. e5 {[%clk 0:02:57.8]} 4... d4 {[%clk 0:03:00.2]} 5. exf6 {[%clk 0:02:58.1]}
5... dxc3 {[%clk 0:02:59.3]} 6. bxc3 {[%clk 0:02:58.4]} 6... Qxf6 {[%clk
0:02:58.7]} 7. Nf3 {[%clk 0:02:58.8]} 7... c5 {[%clk 0:02:56.3]} 8. d4 {[%clk
0:02:53.5]} 8... cxd4 {[%clk 0:02:52.8]} 9. cxd4 {[%clk 0:02:50.9]} 9... Bb4+
{[%clk 0:02:52.1]} 10. Bd2 {[%clk 0:02:51.1]} 10... Bxd2+ {[%clk 0:02:42.4]} 11.
Qxd2 {[%clk 0:02:52]} 11... O-O {[%clk 0:02:42.2]} 12. Be2 {[%clk 0:02:49.7]}
12... Nc6 {[%clk 0:02:42.1]} 13. O-O {[%clk 0:02:46.4]} 13... Rd8 {[%clk
0:02:38.7]} 14. d5 {[%clk 0:02:11]} 14... exd5 {[%clk 0:02:29.9]} 15. cxd5
{[%clk 0:02:10.7]} 15... Ne7 {[%clk 0:02:19]} 16. Bc4 {[%clk 0:01:59.9]} 16...
b5 {[%clk 0:02:11.4]} 17. Bb3 {[%clk 0:01:57.9]} 17... Bb7 {[%clk 0:02:10.8]}
18. Qe2 {[%clk 0:01:32.2]} 18... a6 {[%clk 0:01:46.4]} 19. Rfe1 {[%clk
0:01:10.7]} 19... Nxd5 {[%clk 0:01:45.5]} 20. Rad1 {[%clk 0:01:10]} 20... h6
{[%clk 0:01:28.2]} 21. Qe5 {[%clk 0:01:09.7]} 21... Qxe5 {[%clk 0:01:21.9]} 22.
Nxe5 {[%clk 0:01:09.4]} 22... a5 {[%clk 0:01:06.9]} 23. a3 {[%clk 0:01:09.1]}
23... Rac8 {[%clk 0:00:58.4]} 24. f3 {[%clk 0:00:59.6]} 24... Rc3 {[%clk
0:00:55.9]} 25. Rb1 {[%clk 0:00:57.8]} 25... a4 {[%clk 0:00:49.3]} 26. Ba2
{[%clk 0:00:57.3]} 26... Rxa3 {[%clk 0:00:49.5]} 27. Rxb5 {[%clk 0:00:57.2]}
27... Rxa2 {[%clk 0:00:45.1]} 28. Rxb7 {[%clk 0:00:57.2]} 28... Nf4 {[%clk
0:00:43.7]} 29. Rxf7 {[%clk 0:00:56.1]} 29... Nd3 {[%clk 0:00:20.7]} 30. Nc6
{[%clk 0:00:52.6]} 30... Nxe1 {[%clk 0:00:16.7]} 31. Nxd8 {[%clk 0:00:52.3]}
31... Rd2 {[%clk 0:00:16.8]} 32. Re7 {[%clk 0:00:50.5]} 32... Nxf3+ {[%clk
0:00:12.6]} 33. gxf3 {[%clk 0:00:50.7]} 33... Rxd8 {[%clk 0:00:13.2]} 34. Ra7
{[%clk 0:00:51]} 34... Rd4 {[%clk 0:00:13.5]} 35. Kf2 {[%clk 0:00:51.1]} 35...
Kh7 {[%clk 0:00:14]} 36. Ke3 {[%clk 0:00:50.6]} 36... Rb4 {[%clk 0:00:14.7]} 37.
Ra6 {[%clk 0:00:47.6]} 37... Rb3+ {[%clk 0:00:14.3]} 38. Kf2 {[%clk 0:00:47.4]}
38... a3 {[%clk 0:00:14.7]} 39. Kg3 {[%clk 0:00:47.1]} 39... g5 {[%clk
0:00:12.7]} 40. Kg4 {[%clk 0:00:45.5]} 40... Rb4+ {[%clk 0:00:10.9]} 41. Kg3
{[%clk 0:00:45.3]} 41... Rb3 {[%clk 0:00:11.2]} 42. Kg4 {[%clk 0:00:45.4]} 42...
Kg7 {[%clk 0:00:10.5]} 43. f4 {[%clk 0:00:43.7]} 43... Rb4 {[%clk 0:00:07]} 44.
Rxa3 {[%clk 0:00:42]} 44... Rxf4+ {[%clk 0:00:07.5]} 45. Kg3 {[%clk 0:00:42.5]}
45... Kg6 {[%clk 0:00:08.2]} 46. h3 {[%clk 0:00:40]} 46... h5 {[%clk 0:00:08]}
47. Rb3 {[%clk 0:00:39.8]} 47... h4+ {[%clk 0:00:07.7]} 48. Kg2 {[%clk
0:00:39.9]} 48... Kh5 {[%clk 0:00:06.8]} 49. Ra3 {[%clk 0:00:37]} 49... Rb4
{[%clk 0:00:06.7]} 50. Rc3 {[%clk 0:00:36.6]} 50... Rb2+ {[%clk 0:00:06.7]} 51.
Kh1 {[%clk 0:00:36.3]} 51... Rf2 {[%clk 0:00:06.1]} 52. Kg1 {[%clk 0:00:35.9]}
52... Rd2 {[%clk 0:00:06.4]} 53. Kh1 {[%clk 0:00:35.7]} 53... Kg6 {[%clk
0:00:06.9]} 54. Rc5 {[%clk 0:00:33.5]} 54... Kf6 {[%clk 0:00:06.9]} 55. Ra5
{[%clk 0:00:33.3]} 55... Rf2 {[%clk 0:00:06.1]} 56. Kg1 {[%clk 0:00:33.2]} 56...
Rf5 {[%clk 0:00:06.1]} 57. Ra4 {[%clk 0:00:31.4]} 57... Rf4 {[%clk 0:00:05.7]}
58. Ra5 {[%clk 0:00:30.2]} 58... Re4 {[%clk 0:00:05.1]} 59. Kg2 {[%clk
0:00:29.6]} 59... Re5 {[%clk 0:00:05.4]} 60. Ra8 {[%clk 0:00:29.3]} 60... Kf5
{[%clk 0:00:05.9]} 61. Rf8+ {[%clk 0:00:27.2]} 61... Ke4 {[%clk 0:00:06]} 62.
Rf1 {[%clk 0:00:27]} 62... Rf5 {[%clk 0:00:05.9]} 63. Re1+ {[%clk 0:00:26.9]}
63... Kf4 {[%clk 0:00:06.4]} 64. Rf1+ {[%clk 0:00:27]} 64... Ke5 {[%clk
0:00:06.8]} 65. Re1+ {[%clk 0:00:25]} 65... Kf6 {[%clk 0:00:07.1]} 66. Re4
{[%clk 0:00:23]} 66... Ra5 {[%clk 0:00:06.9]} 67. Rb4 {[%clk 0:00:22.9]} 67...
Ra2+ {[%clk 0:00:06.8]} 68. Kg1 {[%clk 0:00:23]} 68... Kf5 {[%clk 0:00:06.6]}
69. Rc4 {[%clk 0:00:23.3]} 69... Ke5 {[%clk 0:00:06.5]} 70. Rb4 {[%clk
0:00:23.4]} 70... Re2 {[%clk 0:00:06.4]} 71. Rc4 {[%clk 0:00:21]} 71... Re4
{[%clk 0:00:06.6]} 72. Rc5+ {[%clk 0:00:21.4]} 72... Kf4 {[%clk 0:00:06.7]} 73.
Kg2 {[%clk 0:00:21.5]} 73... Re2+ {[%clk 0:00:06.7]} 74. Kg1 {[%clk 0:00:21.8]}
74... Ra2 {[%clk 0:00:04.7]} 75. Rb5 {[%clk 0:00:21.3]} 75... Kf3 {[%clk
0:00:04.4]} 76. Rb3+ {[%clk 0:00:20.9]} 76... Kf4 {[%clk 0:00:04.4]} 77. Rb4+
{[%clk 0:00:21.2]} 77... Kg3 {[%clk 0:00:04.6]} 78. Rb3+ {[%clk 0:00:21.5]}
78... Kf4 {[%clk 0:00:05.2]} 79. Rb4+ {[%clk 0:00:22]} 79... Kg3 {[%clk
0:00:05.7]} 80. Rb3+ {[%clk 0:00:22.4]} 80... Kf4 {[%clk 0:00:06.2]} 1/2-1/2

[Event "*** Titled Tuesday Blitz"]
[Site "Chess.com"]
[Date "2021.03.30"]
[Round "3"]
[White "Srisshhhtea"]
[Black "UKR_Master"]
[Result "0-1"]
[WhiteElo "2332"]
[BlackElo "2574"]
[TimeControl "180+1"]
[EndTime "10:29:57 PDT"]
[Termination "UKR_Master won on time"]

1. e4 {[%clk 0:03:00.9]} 1... c5 {[%clk 0:02:59.4]} 2. Nf3 {[%clk 0:02:55.2]}
2... d6 {[%clk 0:02:59.5]} 3. d3 {[%clk 0:02:53.1]} 3... g6 {[%clk 0:02:57.7]}
4. Be2 {[%clk 0:02:51.8]} 4... Bg7 {[%clk 0:02:57.2]} 5. O-O {[%clk 0:02:51]}
5... Nf6 {[%clk 0:02:57.4]} 6. c3 {[%clk 0:02:51.2]} 6... O-O {[%clk 0:02:57.3]}
7. Nbd2 {[%clk 0:02:50.2]} 7... e5 {[%clk 0:02:56.5]} 8. Nc4 {[%clk 0:02:47.9]}
8... Nc6 {[%clk 0:02:55.7]} 9. Ne3 {[%clk 0:02:44.5]} 9... Be6 {[%clk
0:02:53.8]} 10. Ng5 {[%clk 0:02:39.6]} 10... Bd7 {[%clk 0:02:37.2]} 11. Nd5
{[%clk 0:02:37.6]} 11... Nxd5 {[%clk 0:02:35.9]} 12. exd5 {[%clk 0:02:36.6]}
12... Ne7 {[%clk 0:02:36.3]} 13. c4 {[%clk 0:02:25.2]} 13... Nf5 {[%clk
0:02:30.8]} 14. Ne4 {[%clk 0:02:21.3]} 14... Qc7 {[%clk 0:02:26.3]} 15. Bg4
{[%clk 0:02:15.2]} 15... a6 {[%clk 0:02:20.7]} 16. f4 {[%clk 0:02:11]} 16...
exf4 {[%clk 0:01:55]} 17. Bxf4 {[%clk 0:02:08.9]} 17... Bd4+ {[%clk 0:01:26]}
18. Kh1 {[%clk 0:02:07.4]} 18... Ne3 {[%clk 0:01:26.3]} 19. Bxe3 {[%clk
0:02:04.5]} 19... Bxg4 {[%clk 0:01:18.5]} 20. Qxg4 {[%clk 0:02:02.9]} 20... Bxe3
{[%clk 0:01:17.9]} 21. Qg3 {[%clk 0:02:00.6]} 21... Bd4 {[%clk 0:01:16.2]} 22.
Qxd6 {[%clk 0:01:57.4]} 22... Qa5 {[%clk 0:01:11.3]} 23. Nf6+ {[%clk 0:01:38.8]}
23... Kg7 {[%clk 0:01:06.3]} 24. Nd7 {[%clk 0:01:29.3]} 24... Rfe8 {[%clk
0:00:56.9]} 25. Qf4 {[%clk 0:01:25.5]} 25... f5 {[%clk 0:00:52.3]} 26. g4 {[%clk
0:01:05.3]} 26... Qd8 {[%clk 0:00:43.4]} 27. gxf5 {[%clk 0:00:58.6]} 27... Qxd7
{[%clk 0:00:43.2]} 28. f6+ {[%clk 0:00:48.7]} 28... Kh8 {[%clk 0:00:33.5]} 29.
f7 {[%clk 0:00:47]} 29... Rf8 {[%clk 0:00:26.8]} 30. Rae1 {[%clk 0:00:46.9]}
30... Kg7 {[%clk 0:00:26.8]} 31. d6 {[%clk 0:00:36.4]} 31... Qc6+ {[%clk
0:00:15.3]} 32. Re4 {[%clk 0:00:35.3]} 32... Rad8 {[%clk 0:00:15.1]} 33. Rf3
{[%clk 0:00:29.8]} 33... Qxd6 {[%clk 0:00:15.2]} 34. Qg5 {[%clk 0:00:22.1]}
34... Rd7 {[%clk 0:00:09.8]} 35. Rh3 {[%clk 0:00:19.4]} 35... Rdxf7 {[%clk
0:00:08.6]} 36. Qh6+ {[%clk 0:00:18.9]} 36... Kg8 {[%clk 0:00:09.3]} 37. Re1
{[%clk 0:00:16.7]} 37... Rf1+ {[%clk 0:00:08.9]} 38. Rxf1 {[%clk 0:00:16.9]}
38... Rxf1+ {[%clk 0:00:09.8]} 39. Kg2 {[%clk 0:00:17.5]} 39... Rg1+ {[%clk
0:00:10.4]} 40. Kf3 {[%clk 0:00:18]} 40... Qf8+ {[%clk 0:00:10.7]} 41. Qxf8+
{[%clk 0:00:16.6]} 41... Kxf8 {[%clk 0:00:11.6]} 42. Rxh7 {[%clk 0:00:16.8]}
42... b5 {[%clk 0:00:11.7]} 43. cxb5 {[%clk 0:00:16.3]} 43... axb5 {[%clk
0:00:12.6]} 44. Rb7 {[%clk 0:00:16.5]} 44... b4 {[%clk 0:00:12.8]} 45. a3 {[%clk
0:00:16.1]} 45... Rb1 {[%clk 0:00:10.2]} 46. axb4 {[%clk 0:00:14.9]} 46... Rxb2
{[%clk 0:00:10.7]} 47. Rb8+ {[%clk 0:00:13.8]} 47... Ke7 {[%clk 0:00:09.6]} 48.
Rb7+ {[%clk 0:00:14.2]} 48... Kf6 {[%clk 0:00:09.3]} 49. b5 {[%clk 0:00:13.7]}
49... Kf5 {[%clk 0:00:08.1]} 50. b6 {[%clk 0:00:12.5]} 50... Rd2 {[%clk
0:00:07.6]} 51. Rf7+ {[%clk 0:00:10.7]} 51... Ke6 {[%clk 0:00:07.7]} 52. Rh7
{[%clk 0:00:10.2]} 52... Rxd3+ {[%clk 0:00:07.7]} 53. Ke2 {[%clk 0:00:10]} 53...
Rb3 {[%clk 0:00:07.8]} 54. b7 {[%clk 0:00:09.4]} 54... Be5 {[%clk 0:00:07.8]}
55. h4 {[%clk 0:00:08.9]} 55... Kf5 {[%clk 0:00:08.1]} 56. h5 {[%clk 0:00:05.3]}
56... gxh5 {[%clk 0:00:07.4]} 57. Rxh5+ {[%clk 0:00:06.2]} 57... Ke4 {[%clk
0:00:08.1]} 58. Rh4+ {[%clk 0:00:04.3]} 58... Bf4 {[%clk 0:00:08.6]} 59. Rh7
{[%clk 0:00:04.2]} 59... c4 {[%clk 0:00:08.4]} 60. Kd1 {[%clk 0:00:04]} 60...
Be5 {[%clk 0:00:06.9]} 61. Rh4+ {[%clk 0:00:03]} 61... Kd5 {[%clk 0:00:06.5]}
62. Rh7 {[%clk 0:00:01.5]} 62... Rb2 {[%clk 0:00:05]} 63. Kc1 {[%clk 0:00:01.7]}
63... c3 {[%clk 0:00:05.6]} 64. Rd7+ {[%clk 0:00:01.3]} 64... Kc4 {[%clk
0:00:04.8]} 0-1

[Event "*** Titled Tuesday Blitz"]
[Site "Chess.com"]
[Date "2021.03.30"]
[Round "3"]
[White "LawrenceTrent"]
[Black "c_r_e_e_p_e_r"]
[Result "1-0"]
[WhiteElo "2561"]
[BlackElo "2380"]
[TimeControl "180+1"]
[EndTime "10:30:02 PDT"]
[Termination "LawrenceTrent won by checkmate"]

1. d3 {[%clk 0:02:56.2]} 1... g6 {[%clk 0:02:54.1]} 2. g3 {[%clk 0:02:54.4]}
2... Bg7 {[%clk 0:02:54.5]} 3. Bg2 {[%clk 0:02:54.1]} 3... e6 {[%clk 0:02:55.1]}
4. Nf3 {[%clk 0:02:54.2]} 4... Ne7 {[%clk 0:02:55.6]} 5. e4 {[%clk 0:02:54.7]}
5... O-O {[%clk 0:02:56.1]} 6. h4 {[%clk 0:02:52.8]} 6... h6 {[%clk 0:02:55.2]}
7. Nbd2 {[%clk 0:02:50.1]} 7... d5 {[%clk 0:02:52.2]} 8. O-O {[%clk 0:02:49.9]}
8... Nd7 {[%clk 0:02:48.8]} 9. Re1 {[%clk 0:02:46.3]} 9... c5 {[%clk 0:02:47]}
10. c3 {[%clk 0:02:44]} 10... b6 {[%clk 0:02:42.7]} 11. Nf1 {[%clk 0:02:41.7]}
11... Qc7 {[%clk 0:02:41]} 12. exd5 {[%clk 0:02:40.3]} 12... Nxd5 {[%clk
0:02:39.9]} 13. Ne3 {[%clk 0:02:40.1]} 13... Bb7 {[%clk 0:02:39.2]} 14. Ng4
{[%clk 0:02:40.6]} 14... Kh7 {[%clk 0:02:36.7]} 15. Qd2 {[%clk 0:02:40.2]} 15...
h5 {[%clk 0:02:16.8]} 16. Ng5+ {[%clk 0:02:38.1]} 16... Kg8 {[%clk 0:02:16.7]}
17. Nh2 {[%clk 0:02:31.5]} 17... Rad8 {[%clk 0:02:12.1]} 18. Qe2 {[%clk
0:02:27.9]} 18... Ne5 {[%clk 0:02:03.4]} 19. Bxd5 {[%clk 0:01:54.2]} 19... Rxd5
{[%clk 0:01:52.7]} 20. Bf4 {[%clk 0:01:51.9]} 20... Qc6 {[%clk 0:01:49]} 21.
Bxe5 {[%clk 0:01:11.6]} 21... Rxe5 {[%clk 0:01:43.9]} 22. Qf3 {[%clk 0:01:11.7]}
22... Qd7 {[%clk 0:01:29]} 23. Qf4 {[%clk 0:01:03.5]} 23... Rxe1+ {[%clk
0:01:03.9]} 24. Rxe1 {[%clk 0:01:04.4]} 24... Qxd3 {[%clk 0:01:04]} 25. Nhf3
{[%clk 0:00:59.1]} 25... Qd5 {[%clk 0:00:56.4]} 26. Ne4 {[%clk 0:00:54.6]} 26...
e5 {[%clk 0:00:50.5]} 27. Qg5 {[%clk 0:00:39.5]} 27... Kh7 {[%clk 0:00:30.3]}
28. Qe7 {[%clk 0:00:37.4]} 28... Kg8 {[%clk 0:00:20.6]} 29. c4 {[%clk
0:00:33.5]} 29... Qc6 {[%clk 0:00:19.6]} 30. Nxe5 {[%clk 0:00:29.6]} 30... Bxe5
{[%clk 0:00:14.5]} 31. Qxe5 {[%clk 0:00:30.5]} 31... f6 {[%clk 0:00:14.3]} 32.
Qe7 {[%clk 0:00:26.6]} 32... Rf7 {[%clk 0:00:14.3]} 33. Qd8+ {[%clk 0:00:25.1]}
33... Kg7 {[%clk 0:00:14]} 34. f3 {[%clk 0:00:24.4]} 34... Rd7 {[%clk
0:00:11.7]} 35. Qb8 {[%clk 0:00:18.6]} 35... Re7 {[%clk 0:00:07.1]} 36. Qd8
{[%clk 0:00:11.7]} 36... Qc7 {[%clk 0:00:03.4]} 37. Qxc7 {[%clk 0:00:11.6]}
37... Rxc7 {[%clk 0:00:04.3]} 38. Nd6 {[%clk 0:00:12.1]} 38... Bc6 {[%clk
0:00:04]} 39. Ne8+ {[%clk 0:00:11]} 39... Bxe8 {[%clk 0:00:03.8]} 40. Rxe8
{[%clk 0:00:11.9]} 40... Kf7 {[%clk 0:00:04.3]} 41. Re3 {[%clk 0:00:11.9]} 41...
Rd7 {[%clk 0:00:04.7]} 42. Kf2 {[%clk 0:00:12.6]} 42... Rd2+ {[%clk 0:00:04.7]}
43. Re2 {[%clk 0:00:13.1]} 43... Rd4 {[%clk 0:00:05.3]} 44. b3 {[%clk
0:00:12.9]} 44... Rd1 {[%clk 0:00:05.2]} 45. f4 {[%clk 0:00:12.6]} 45... Rd6
{[%clk 0:00:05.2]} 46. Kf3 {[%clk 0:00:11.6]} 46... Rd3+ {[%clk 0:00:05]} 47.
Kf2 {[%clk 0:00:11.7]} 47... Rd4 {[%clk 0:00:04.9]} 48. Re3 {[%clk 0:00:11.7]}
48... Rd2+ {[%clk 0:00:05.1]} 49. Re2 {[%clk 0:00:11.8]} 49... Rd3 {[%clk
0:00:05.5]} 50. Kg2 {[%clk 0:00:12.1]} 50... Rd4 {[%clk 0:00:05.7]} 51. Kf3
{[%clk 0:00:12.2]} 51... Rd3+ {[%clk 0:00:06.1]} 52. Kg2 {[%clk 0:00:12.3]}
52... Rc3 {[%clk 0:00:06.5]} 53. Kf2 {[%clk 0:00:12.4]} 53... Rd3 {[%clk
0:00:06.8]} 54. Ke1 {[%clk 0:00:12.7]} 54... Rxg3 {[%clk 0:00:06.5]} 55. Rd2
{[%clk 0:00:12.4]} 55... Rf3 {[%clk 0:00:06.5]} 56. Rd7+ {[%clk 0:00:12.3]}
56... Ke6 {[%clk 0:00:06.3]} 57. Rxa7 {[%clk 0:00:13.2]} 57... Rxf4 {[%clk
0:00:06.4]} 58. Ra6 {[%clk 0:00:14.1]} 58... Rxh4 {[%clk 0:00:06.4]} 59. Rxb6+
{[%clk 0:00:14.7]} 59... Kf5 {[%clk 0:00:06.6]} 60. Rc6 {[%clk 0:00:14.8]} 60...
Rh1+ {[%clk 0:00:06.4]} 61. Kf2 {[%clk 0:00:13.7]} 61... Rh2+ {[%clk 0:00:07.3]}
62. Kf3 {[%clk 0:00:13.3]} 62... Rxa2 {[%clk 0:00:08.2]} 63. Rxc5+ {[%clk
0:00:13.9]} 63... Ke6 {[%clk 0:00:08.1]} 64. b4 {[%clk 0:00:14.4]} 64... Rb2
{[%clk 0:00:07.8]} 65. b5 {[%clk 0:00:14.5]} 65... h4 {[%clk 0:00:07.5]} 66. Kg4
{[%clk 0:00:13.9]} 66... g5 {[%clk 0:00:07.9]} 67. Rc6+ {[%clk 0:00:14.2]} 67...
Ke5 {[%clk 0:00:07.5]} 68. b6 {[%clk 0:00:13.5]} 68... Rg2+ {[%clk 0:00:04.9]}
69. Kh3 {[%clk 0:00:13.6]} 69... Rg3+ {[%clk 0:00:05.2]} 70. Kh2 {[%clk
0:00:13.6]} 70... Rc3 {[%clk 0:00:04.6]} 71. b7 {[%clk 0:00:12]} 71... Rc2+
{[%clk 0:00:04.4]} 72. Kg1 {[%clk 0:00:11.8]} 72... Rb2 {[%clk 0:00:04.6]} 73.
Rc5+ {[%clk 0:00:11.8]} 73... Kd4 {[%clk 0:00:04.3]} 74. Rb5 {[%clk 0:00:12.7]}
74... Rxb5 {[%clk 0:00:01.2]} 75. cxb5 {[%clk 0:00:12.5]} 75... h3 {[%clk
0:00:02]} 76. b8=Q {[%clk 0:00:13.1]} 76... Ke4 {[%clk 0:00:02.7]} 77. Qh2
{[%clk 0:00:13.5]} 77... Kf3 {[%clk 0:00:03.6]} 78. Qxh3+ {[%clk 0:00:14]} 78...
Kf4 {[%clk 0:00:03.7]} 79. b6 {[%clk 0:00:13.5]} 79... g4 {[%clk 0:00:04.6]} 80.
Qc3 {[%clk 0:00:13]} 80... f5 {[%clk 0:00:05.5]} 81. b7 {[%clk 0:00:13.2]} 81...
g3 {[%clk 0:00:06.3]} 82. b8=Q+ {[%clk 0:00:13.7]} 82... Kg4 {[%clk 0:00:07.2]}
83. Qcxg3+ {[%clk 0:00:13.6]} 83... Kh5 {[%clk 0:00:07.2]} 84. Qh8# {[%clk
0:00:14.2]} 1-0

[Event "*** Titled Tuesday Blitz"]
[Site "Chess.com"]
[Date "2021.03.30"]
[Round "3"]
[White "ural58"]
[Black "MikeSailer"]
[Result "1-0"]
[WhiteElo "2494"]
[BlackElo "2126"]
[TimeControl "180+1"]
[EndTime "10:30:11 PDT"]
[Termination "ural58 won on time"]

1. e4 {[%clk 0:02:07.3]} 1... d5 {[%clk 0:02:57.9]} 2. exd5 {[%clk 0:02:06.9]}
2... Qxd5 {[%clk 0:02:57.9]} 3. Nc3 {[%clk 0:02:06.9]} 3... Qd6 {[%clk
0:02:58.3]} 4. Nf3 {[%clk 0:02:06.5]} 4... Nf6 {[%clk 0:02:59]} 5. d4 {[%clk
0:02:06.6]} 5... c6 {[%clk 0:02:59.5]} 6. g3 {[%clk 0:02:06.7]} 6... Bf5 {[%clk
0:02:59.7]} 7. Bf4 {[%clk 0:02:05.7]} 7... Qd8 {[%clk 0:03:00]} 8. Bg2 {[%clk
0:01:58.8]} 8... e6 {[%clk 0:03:00.5]} 9. Nh4 {[%clk 0:01:58.3]} 9... Bg4 {[%clk
0:03:00.3]} 10. Qd3 {[%clk 0:01:57.6]} 10... Be7 {[%clk 0:02:58.4]} 11. h3
{[%clk 0:01:57.7]} 11... Bh5 {[%clk 0:02:58.9]} 12. g4 {[%clk 0:01:57.1]} 12...
Bg6 {[%clk 0:02:59.3]} 13. Nxg6 {[%clk 0:01:56.9]} 13... hxg6 {[%clk 0:03:00.1]}
14. O-O-O {[%clk 0:01:57.6]} 14... Nbd7 {[%clk 0:03:00]} 15. Bg3 {[%clk
0:01:56.6]} 15... Qa5 {[%clk 0:02:57.9]} 16. Kb1 {[%clk 0:01:56.3]} 16... O-O-O
{[%clk 0:02:54.8]} 17. Rhe1 {[%clk 0:01:56.5]} 17... Bb4 {[%clk 0:02:51.3]} 18.
Re3 {[%clk 0:01:54.5]} 18... Nb6 {[%clk 0:02:50.9]} 19. a3 {[%clk 0:01:53.2]}
19... Bxc3 {[%clk 0:02:50.3]} 20. Qxc3 {[%clk 0:01:53.2]} 20... Qa4 {[%clk
0:02:36.9]} 21. Qb3 {[%clk 0:01:43.5]} 21... Qa5 {[%clk 0:02:28]} 22. Red3
{[%clk 0:01:42.4]} 22... g5 {[%clk 0:02:06]} 23. f4 {[%clk 0:01:36.9]} 23...
gxf4 {[%clk 0:02:04.6]} 24. Bxf4 {[%clk 0:01:37.8]} 24... Nbd5 {[%clk
0:02:04.6]} 25. Bd2 {[%clk 0:01:37.7]} 25... Qc7 {[%clk 0:02:03.1]} 26. c4
{[%clk 0:01:37.5]} 26... Nf4 {[%clk 0:02:01.9]} 27. Bxf4 {[%clk 0:01:24.3]}
27... Qxf4 {[%clk 0:02:01.3]} 28. Ka2 {[%clk 0:01:23.2]} 28... Kb8 {[%clk
0:01:51]} 29. d5 {[%clk 0:01:19.1]} 29... exd5 {[%clk 0:01:48.2]} 30. cxd5
{[%clk 0:01:20]} 30... Nxd5 {[%clk 0:01:48.6]} 31. Bxd5 {[%clk 0:01:20.2]} 31...
Rxd5 {[%clk 0:01:44.5]} 32. Rxd5 {[%clk 0:01:20.2]} 32... cxd5 {[%clk
0:01:45.1]} 33. Rxd5 {[%clk 0:01:19.7]} 33... Qc7 {[%clk 0:01:31.4]} 34. Rb5
{[%clk 0:00:57.3]} 34... a6 {[%clk 0:01:22.6]} 35. Rb4 {[%clk 0:00:57.5]} 35...
Rc8 {[%clk 0:01:19.3]} 36. h4 {[%clk 0:00:53.9]} 36... Qc6 {[%clk 0:01:14.8]}
37. h5 {[%clk 0:00:47.1]} 37... Ka8 {[%clk 0:01:13.7]} 38. Rf4 {[%clk
0:00:43.4]} 38... f6 {[%clk 0:01:13.1]} 39. Rd4 {[%clk 0:00:38.8]} 39... Ka7
{[%clk 0:00:49.3]} 40. Qd3 {[%clk 0:00:38.3]} 40... Ka8 {[%clk 0:00:47.6]} 41.
Re4 {[%clk 0:00:36.8]} 41... Ka7 {[%clk 0:00:43.3]} 42. Re7 {[%clk 0:00:36.1]}
42... Rc7 {[%clk 0:00:36.3]} 43. Qd4+ {[%clk 0:00:34.2]} 43... b6 {[%clk
0:00:36.3]} 44. Re4 {[%clk 0:00:29]} 44... Qc5 {[%clk 0:00:33.4]} 45. Qd3 {[%clk
0:00:26.7]} 45... f5 {[%clk 0:00:26.5]} 46. gxf5 {[%clk 0:00:21.3]} 46... Qxf5
{[%clk 0:00:26.4]} 47. Qe2 {[%clk 0:00:17.4]} 47... Qd5+ {[%clk 0:00:20.7]} 48.
Kb1 {[%clk 0:00:16.3]} 48... Qc5 {[%clk 0:00:19]} 49. Re5 {[%clk 0:00:13.8]}
49... Qc1+ {[%clk 0:00:18.1]} 50. Ka2 {[%clk 0:00:14.4]} 50... Qc4+ {[%clk
0:00:17.5]} 51. Qxc4 {[%clk 0:00:14.7]} 51... Rxc4 {[%clk 0:00:17.9]} 52. Re7+
{[%clk 0:00:15.6]} 52... Kb8 {[%clk 0:00:17.6]} 53. Rxg7 {[%clk 0:00:16.5]}
53... Rh4 {[%clk 0:00:16.6]} 54. Rh7 {[%clk 0:00:16.5]} 54... Kc8 {[%clk
0:00:14.6]} 55. Kb3 {[%clk 0:00:16.9]} 55... a5 {[%clk 0:00:14.5]} 56. Kc3
{[%clk 0:00:17.2]} 56... b5 {[%clk 0:00:13.5]} 57. Kd3 {[%clk 0:00:17.2]} 57...
b4 {[%clk 0:00:13.3]} 58. a4 {[%clk 0:00:17]} 58... Rh2 {[%clk 0:00:10.6]} 59.
Kc4 {[%clk 0:00:16.4]} 59... Rxb2 {[%clk 0:00:10.8]} 60. h6 {[%clk 0:00:15.4]}
60... Rh2 {[%clk 0:00:09.5]} 61. Rh8+ {[%clk 0:00:13.5]} 61... Kd7 {[%clk
0:00:09.5]} 62. Kb5 {[%clk 0:00:13.5]} 62... b3 {[%clk 0:00:09.5]} 63. Kxa5
{[%clk 0:00:14.4]} 63... b2 {[%clk 0:00:09.9]} 64. Rb8 {[%clk 0:00:14.5]} 64...
Rxh6 {[%clk 0:00:06.5]} 65. Rxb2 {[%clk 0:00:14.4]} 65... Kc7 {[%clk 0:00:04.5]}
66. Rb5 {[%clk 0:00:14.1]} 66... Rc6 {[%clk 0:00:03.7]} 67. Rb4 {[%clk
0:00:13.3]} 67... Rc1 {[%clk 0:00:03.9]} 68. Ka6 {[%clk 0:00:13.1]} 68... Kc8
{[%clk 0:00:04.4]} 69. a5 {[%clk 0:00:13.4]} 69... Kc7 {[%clk 0:00:04.6]} 70.
Ka7 {[%clk 0:00:13.5]} 70... Kc8 {[%clk 0:00:03.2]} 71. Rb7 {[%clk 0:00:13]}
71... Rc6 {[%clk 0:00:01.7]} 72. a6 {[%clk 0:00:12.5]} 72... Rc5 {[%clk
0:00:02.1]} 73. Kb6 {[%clk 0:00:12]} 1-0